bitfinex-derivatives/quotes_BTCF0:USTF0_20250614
["timestamp","ask_amount","ask_price","bid_price","bid_amount"]
[1749917142087,0.57842627,104960.0,104950.0,0.5304812]
[1749917142283,0.57842627,104960.0,104950.0,0.68311141]
[1749917143180,0.57842627,104960.0,104950.0,1.66427141]
[1749917143181,0.76888937,104960.0,104950.0,1.66427141]
[1749917143581,0.76888937,104960.0,104950.0,1.6048412]
[1749917143981,0.76788937,104960.0,104950.0,1.6048412]
[1749917144984,0.82898937,104960.0,104950.0,1.6048412]
[1749917145184,1.18978937,104960.0,104950.0,1.5744412]
[1749917145386,1.18978937,104960.0,104950.0,1.5431412]
[1749917146488,1.18978937,104960.0,104950.0,1.5116412]
[1749917150190,1.19392772,104960.0,104950.0,1.5116412]
[1749917152791,1.22622772,104960.0,104950.0,1.5116412]
[1749917159196,1.22622772,104960.0,104950.0,0.5304812]
[1749917159392,0.1904813,104950.0,104940.0,0.68822275]
[1749917159597,0.6149813,104950.0,104940.0,1.94143925]
[1749917159793,0.6149813,104950.0,104940.0,0.96059925]
[1749917160186,0.6149813,104950.0,104940.0,1.83438724]
[1749917160392,0.67443506,104950.0,104940.0,1.83438724]
[1749917160587,0.67443506,104950.0,104940.0,0.91297745]
[1749917160794,0.67443506,104950.0,104940.0,1.83438724]
[1749917160994,0.67443506,104950.0,104940.0,1.64438724]
[1749917161194,0.67443506,104950.0,104940.0,0.66354724]
[1749917161498,0.76350317,104950.0,104940.0,1.45646724]
[1749917162102,0.76350317,104950.0,104940.0,1.45846724]
[1749917162297,0.67543506,104950.0,104940.0,1.45746724]
[1749917162606,0.67543506,104950.0,104940.0,1.45546724]
[1749917162801,0.67643506,104950.0,104940.0,1.16016724]
[1749917165404,0.68057341,104950.0,104940.0,1.16016724]
[1749917165599,0.31977341,104950.0,104940.0,1.16016724]
[1749917166605,0.31977341,104950.0,104940.0,1.24016724]
[1749917170209,0.31977341,104950.0,104940.0,1.31805072]
[1749917172908,0.35017341,104950.0,104940.0,1.31805072]
[1749917178224,0.35017341,104950.0,104940.0,1.35045072]
[1749917181534,0.25607341,104950.0,104940.0,1.35045072]
[1749917181734,0.25193506,104950.0,104940.0,1.38145072]
[1749917182225,0.61273506,104950.0,104940.0,1.38145072]
[1749917184024,0.25193506,104950.0,104940.0,1.38145072]
[1749917187333,0.25193506,104950.0,104940.0,1.44088093]
[1749917189428,0.34100317,104950.0,104940.0,1.44088093]
[1749917191137,0.25193506,104950.0,104940.0,1.44088093]
[1749917191434,0.34100317,104950.0,104940.0,1.44088093]
[1749917193637,0.37220317,104950.0,104940.0,1.44088093]
[1749917194638,0.37220317,104950.0,104940.0,1.62976093]
[1749917194835,0.40460317,104950.0,104940.0,1.62976093]
[1749917195035,0.43590317,104950.0,104940.0,1.62976093]
[1749917197940,0.43590317,104950.0,104940.0,1.58517745]
[1749917198439,0.34683506,104950.0,104940.0,1.58517745]
[1749917200642,0.43590317,104950.0,104940.0,1.6298432]
[1749917203043,0.15052187,104950.0,104940.0,1.94597745]
[1749917203243,0.002,104950.0,104940.0,2.03512277]
[1749917203438,0.002,104950.0,104940.0,1.97569256]
[1749917204145,0.002,104950.0,104940.0,2.27099256]
[1749917204936,0.1924812,104950.0,104940.0,2.27099256]
[1749917205946,0.1914812,104950.0,104940.0,2.27099256]
[1749917206143,0.1904812,104950.0,104940.0,2.27099256]
[1749917206449,0.1914812,104950.0,104940.0,2.27299256]
[1749917207346,0.1904812,104950.0,104940.0,2.27399256]
[1749917207846,0.1904812,104950.0,104940.0,1.91319256]
[1749917208255,0.1904812,104950.0,104940.0,1.97266787]
[1749917210159,0.1904812,104950.0,104940.0,2.33346787]
[1749917210354,0.1904812,104950.0,104940.0,2.27399256]
[1749917211150,0.19461955,104950.0,104940.0,2.27399256]
[1749917214260,0.19461955,104950.0,104940.0,2.33344609]
[1749917215959,0.19461955,104950.0,104940.0,2.03814609]
[1749917219560,0.19461955,104950.0,104940.0,2.03754609]
[1749917221860,0.19461955,104950.0,104940.0,1.97204609]
[1749917222061,0.22471955,104950.0,104940.0,1.97204609]
[1749917222260,0.22471955,104950.0,104940.0,1.78588077]
[1749917222261,0.58551955,104950.0,104940.0,1.78588077]
[1749917222461,0.64741955,104950.0,104940.0,1.83047703]
[1749917222861,0.64741955,104950.0,104940.0,1.7710235]
[1749917223260,0.64741955,104950.0,104940.0,1.83047703]
[1749917223461,0.64741955,104950.0,104940.0,1.82847703]
[1749917223662,0.64841955,104950.0,104940.0,1.82847703]
[1749917224167,0.64841955,104950.0,104940.0,1.82747703]
[1749917224364,0.64941955,104950.0,104940.0,1.82747703]
[1749917227963,0.64941955,104950.0,104940.0,1.53217703]
[1749917232168,0.64841955,104950.0,104940.0,1.53217703]
[1749917232369,0.64841955,104950.0,104940.0,1.48758077]
[1749917232675,0.28761955,104950.0,104940.0,1.48758077]
[1749917232974,0.64841955,104950.0,104940.0,1.48758077]
[1749917234067,0.28761955,104950.0,104940.0,1.48758077]
[1749917234269,0.64841955,104950.0,104940.0,1.48758077]
[1749917235174,0.28761955,104950.0,104940.0,1.48758077]
[1749917235477,0.64841955,104950.0,104940.0,1.48758077]
[1749917236274,0.28761955,104950.0,104940.0,0.69634077]
[1749917236574,0.28761955,104950.0,104940.0,1.48742077]
[1749917237477,0.28761955,104950.0,104940.0,1.57656609]
[1749917237877,0.28761955,104950.0,104940.0,1.48742077]
[1749917239977,0.64841955,104950.0,104940.0,1.48742077]
[1749917240181,0.28761955,104950.0,104940.0,1.48742077]
[1749917240580,0.6442812,104950.0,104940.0,1.48742077]
[1749917243579,0.64841955,104950.0,104940.0,1.42796724]
[1749917244881,0.64841955,104950.0,104940.0,0.44824724]
[1749917245081,0.64841955,104950.0,104940.0,0.63664724]
[1749917245281,0.64841955,104950.0,104940.0,1.42756724]
[1749917249687,0.70784863,104950.0,104940.0,1.48707474]
[1749917252693,0.70784863,104950.0,104940.0,1.576336]
[1749917253193,0.70784863,104950.0,104940.0,1.48707474]
[1749917253492,0.70784863,104950.0,104940.0,1.576336]
[1749917255195,0.34704863,104950.0,104940.0,1.576336]
[1749917255590,0.70784863,104950.0,104940.0,1.576336]
[1749917268606,0.70784863,104950.0,104940.0,0.597016]
[1749917268806,0.70784863,104950.0,104940.0,1.576016]
[1749917269003,0.64841955,104950.0,104940.0,1.42724724]
[1749917270515,0.64841955,104950.0,104940.0,1.57612402]
[1749917270516,0.70789454,104950.0,104940.0,1.57612402]
[1749917282922,0.34709454,104950.0,104940.0,1.60892402]
[1749917283113,0.34709454,104950.0,104940.0,1.66972402]
[1749917284921,0.31699454,104950.0,104940.0,1.66972402]
[1749917285422,0.28519454,104950.0,104940.0,1.66972402]
[1749917285817,0.25509454,104950.0,104940.0,1.97097331]
[1749917286023,0.25509454,104950.0,104940.0,1.66972678]
[1749917292131,0.25509454,104950.0,104940.0,0.87912678]
[1749917292332,0.61589454,104950.0,104940.0,1.57576678]
[1749917292533,0.71119454,104950.0,104940.0,1.57576678]
[1749917292725,0.71119454,104950.0,104940.0,1.48644071]
[1749917294136,0.71119454,104950.0,104940.0,1.48616071]
[1749917297533,0.71119454,104950.0,104940.0,1.48612071]
[1749917300434,0.71119454,104950.0,104940.0,1.48313151]
[1749917301031,0.80040702,104950.0,104940.0,0.31435211]
[1749917301339,0.99171955,104950.0,104940.0,0.00014324]
[1749917301635,1.08091333,104950.0,104940.0,0.00014324]
[1749917302534,1.08191333,104950.0,104940.0,0.00014324]
[1749917302736,1.08091333,104950.0,104940.0,0.00014324]
[1749917302935,1.58191333,104950.0,104940.0,0.00014324]
[1749917303138,1.67720133,104950.0,104940.0,1e-08]
[1749917303336,1.58800755,104950.0,104940.0,1e-08]
[1749917304229,1.70695753,104950.0,104940.0,1e-08]
[1749917304429,1.58900755,104950.0,104940.0,1e-08]
[1749917305629,1.67811645,104950.0,104940.0,1e-08]
[1749917305833,0.1905175,104930.0,104920.0,0.36987788]
[1749917306029,0.5513175,104930.0,104920.0,0.75247908]
[1749917306233,0.6465175,104930.0,104920.0,0.50816058]
[1749917306431,0.6465175,104930.0,104920.0,0.60342638]
[1749917307238,0.6475175,104930.0,104920.0,0.60342638]
[1749917307543,0.65696466,104930.0,104920.0,0.60342638]
[1749917307743,0.6475175,104930.0,104920.0,0.60342638]
[1749917309844,0.65722488,104930.0,104920.0,0.60342638]
[1749917310747,0.65722488,104930.0,104920.0,0.83151707]
[1749917312039,0.94472149,104930.0,104920.0,0.27000788]
[1749917312240,1.49605169,104930.0,104920.0,0.29809069]
[1749917313147,2.18401169,104930.0,104920.0,0.41862649]
[1749917313348,2.18401169,104930.0,104920.0,0.22809069]
[1749917314449,0.1905357,104920.0,104910.0,0.55415264]
[1749917314652,0.5813357,104920.0,104910.0,1.16237402]
[1749917315052,0.5813357,104920.0,104910.0,1.19527402]
[1749917315949,1.0813357,104920.0,104910.0,1.19527402]
[1749917316149,1.0813357,104920.0,104910.0,1.19627402]
[1749917316654,1.0813357,104920.0,104910.0,1.19727402]
[1749917318554,1.1454357,104920.0,104910.0,1.19727402]
[1749917318961,0.7846357,104920.0,104910.0,1.19727402]
[1749917319165,1.1454357,104920.0,104910.0,1.19727402]
[1749917319361,1.1454357,104920.0,104910.0,1.14963642]
[1749917321767,0.7205357,104920.0,104910.0,1.17983642]
[1749917323460,0.6905357,104920.0,104910.0,1.17983642]
[1749917323655,0.6905357,104920.0,104910.0,0.72365504]
[1749917323859,0.6905357,104920.0,104910.0,1.17983642]
[1749917324366,1.0513357,104920.0,104910.0,1.05436552]
[1749917325464,1.0513357,104920.0,104910.0,0.40764324]
[1749917325761,1.71883231,104920.0,104910.0,0.00214324]
[1749917325969,1.46183529,104920.0,104910.0,0.00214324]
[1749917327064,1.46283529,104920.0,104910.0,0.00114324]
[1749917327264,1.46283529,104920.0,104910.0,0.00014324]
[1749917327265,1.2347446,104920.0,104910.0,0.00014324]
[1749917327870,1.2940767,104920.0,104910.0,0.00014324]
[1749917328169,1.2347446,104920.0,104910.0,0.00014324]
[1749917328768,1.29407594,104920.0,104910.0,0.00014324]
[1749917328958,1.2367446,104920.0,104910.0,0.00014324]
[1749917329464,1.29606636,104920.0,104910.0,0.00014324]
[1749917329768,1.2367446,104920.0,104910.0,0.00014324]
[1749917331068,1.24088295,104920.0,104910.0,0.00014324]
[1749917331767,1.61088295,104920.0,104910.0,0.00014324]
[1749917331969,1.24088295,104920.0,104910.0,0.00014324]
[1749917332172,0.3811384,104910.0,104900.0,0.1905649]
[1749917332370,0.9296984,104910.0,104900.0,0.6913076]
[1749917333770,1.4306984,104910.0,104900.0,0.6913076]
[1749917336172,1.4624984,104910.0,104900.0,0.6913076]
[1749917339275,1.5267984,104910.0,104900.0,0.6913076]
[1749917339576,1.58613326,104910.0,104900.0,0.6913076]
[1749917340476,1.58613326,104910.0,104900.0,0.4225]
[1749917340674,1.58613326,104910.0,104900.0,0.56284095]
[1749917340878,0.1905721,104900.0,104890.0,0.39078419]
[1749917341067,0.6171721,104900.0,104890.0,0.52298419]
[1749917341576,0.67650696,104900.0,104890.0,0.32014324]
[1749917342170,0.75197976,104900.0,104890.0,0.32014324]
[1749917342676,0.75197976,104900.0,104890.0,0.32114324]
[1749917342977,0.75197976,104900.0,104890.0,0.11547324]
[1749917343278,0.75197976,104900.0,104890.0,0.002]
[1749917343574,1.54185976,104900.0,104890.0,0.002]
[1749917343973,0.1905901,104890.0,104880.0,0.00014324]
[1749917344179,0.89089077,104890.0,104880.0,0.03014324]
[1749917344370,1.33999967,104890.0,104880.0,0.03014324]
[1749917344570,0.97999967,104890.0,104880.0,0.03014324]
[1749917344973,1.31999967,104890.0,104880.0,0.00014324]
[1749917345274,1.30999967,104890.0,104880.0,0.00014324]
[1749917345478,1.18284062,104890.0,104880.0,0.00014324]
[1749917345679,0.1906265,104870.0,104860.0,1.25331369]
[1749917345883,0.1906265,104870.0,104860.0,1.59331369]
[1749917345884,0.5514265,104870.0,104860.0,1.59331369]
[1749917346177,1.0044265,104870.0,104860.0,0.34]
[1749917346384,1.25152717,104870.0,104860.0,0.34]
[1749917346578,1.1922265,104870.0,104860.0,0.34]
[1749917346775,1.25152717,104870.0,104860.0,0.34]
[1749917346977,1.25152717,104870.0,104860.0,0.343]
[1749917347279,1.25152717,104870.0,104860.0,0.345]
[1749917347677,1.26080538,104870.0,104860.0,0.345]
[1749917347881,1.20150471,104870.0,104860.0,0.345]
[1749917348085,1.20150471,104870.0,104860.0,0.343]
[1749917348287,1.20250471,104870.0,104860.0,0.343]
[1749917348474,1.99238471,104870.0,104860.0,0.343]
[1749917348879,1.99338471,104870.0,104860.0,0.34]
[1749917349080,2.49338471,104870.0,104860.0,0.34]
[1749917351084,0.1906448,104860.0,104850.0,0.28613504]
[1749917351382,0.6138448,104860.0,104850.0,0.86897599]
[1749917352186,1.1138448,104860.0,104850.0,0.38014324]
[1749917352585,1.4638448,104860.0,104850.0,0.38014324]
[1749917352788,1.31668575,104860.0,104850.0,0.39424397]
[1749917352988,1.62668575,104860.0,104850.0,0.22424397]
[1749917353285,1.31668575,104860.0,104850.0,0.22424397]
[1749917353484,1.31668575,104860.0,104850.0,0.22524397]
[1749917354084,1.31668575,104860.0,104850.0,0.22530432]
[1749917354598,1.62668575,104860.0,104850.0,0.22530432]
[1749917354886,2.14068575,104860.0,104850.0,0.22530432]
[1749917355080,2.51068575,104860.0,104850.0,0.01530432]
[1749917355486,2.51068575,104860.0,104850.0,0.01535512]
[1749917355487,2.56998642,104860.0,104850.0,0.01535512]
[1749917355680,2.19998642,104860.0,104850.0,0.01535512]
[1749917355884,0.1906993,104830.0,104820.0,0.6181183]
[1749917356085,0.1906993,104830.0,104820.0,1.20095925]
[1749917356492,0.1906993,104830.0,104820.0,0.88772805]
[1749917356688,0.2217993,104830.0,104820.0,1.12611025]
[1749917356989,0.2217993,104830.0,104820.0,1.48991025]
[1749917357892,0.1906993,104830.0,104820.0,1.48991025]
[1749917358190,0.1906993,104830.0,104820.0,1.49191025]
[1749917358392,0.42639474,104840.0,104830.0,0.1906993]
[1749917358593,0.42639474,104840.0,104830.0,1.11434025]
[1749917358797,0.23851474,104840.0,104830.0,1.11434025]
[1749917359182,0.23851474,104840.0,104830.0,0.9114993]
[1749917359390,0.23851474,104840.0,104830.0,1.11434025]
[1749917359590,0.23851474,104840.0,104830.0,1.16154025]
[1749917359886,0.31484211,104840.0,104830.0,1.16154025]
[1749917360788,0.31484211,104840.0,104830.0,0.75354025]
[1749917360986,0.74084211,104840.0,104830.0,0.75354025]
[1749917361894,0.74084211,104840.0,104830.0,0.5506993]
[1749917362190,0.74084211,104840.0,104830.0,0.75354025]
[1749917362993,0.74084211,104840.0,104830.0,0.56284095]
[1749917363293,0.74084211,104840.0,104830.0,0.75354025]
[1749917366895,0.74084211,104840.0,104830.0,0.56284095]
[1749917367194,0.74084211,104840.0,104830.0,0.75354025]
[1749917367796,0.74084211,104840.0,104830.0,0.56284095]
[1749917367994,0.74084211,104840.0,104830.0,0.75354015]
[1749917368388,1.24084211,104840.0,104830.0,0.36]
[1749917368592,1.24084211,104840.0,104830.0,0.37311215]
[1749917368898,1.44368306,104840.0,104830.0,0.37313135]
[1749917369094,3.40796306,104840.0,104830.0,0.37313135]
[1749917369294,0.1907174,104820.0,104810.0,0.69564007]
[1749917369492,0.5515174,104820.0,104810.0,0.75260347]
[1749917369693,0.6145174,104820.0,104810.0,0.75260347]
[1749917370598,0.6145174,104820.0,104810.0,0.75560347]
[1749917371394,0.6145174,104820.0,104810.0,0.55276252]
[1749917371598,0.6145174,104820.0,104810.0,0.75560347]
[1749917372096,0.2537174,104820.0,104810.0,0.76060357]
[1749917372701,0.2537174,104820.0,104810.0,0.55776262]
[1749917373001,0.2537174,104820.0,104810.0,0.76060357]
[1749917373204,0.2537174,104820.0,104810.0,0.55776262]
[1749917373394,0.2537174,104820.0,104810.0,0.76060357]
[1749917375302,0.6145174,104820.0,104810.0,0.55776262]
[1749917375601,0.2537174,104820.0,104810.0,0.76060357]
[1749917375802,0.25785575,104820.0,104810.0,0.76060357]
[1749917376703,0.61865575,104820.0,104810.0,0.76060357]
[1749917377003,0.61865575,104820.0,104810.0,0.55776262]
[1749917377305,0.61865575,104820.0,104810.0,0.76060357]
[1749917380007,0.61865575,104820.0,104810.0,0.55776262]
[1749917380209,0.61865575,104820.0,104810.0,0.76060357]
[1749917383410,0.22565575,104820.0,104810.0,0.76060357]
[1749917383610,0.22565575,104820.0,104810.0,0.77780357]
[1749917383912,0.22565575,104820.0,104810.0,0.79270357]
[1749917384103,0.22565575,104820.0,104810.0,1.15350357]
[1749917385316,0.22565575,104820.0,104810.0,0.53887894]
[1749917385512,0.25705575,104820.0,104810.0,0.74171989]
[1749917388217,0.29015575,104820.0,104810.0,0.74171989]
[1749917388512,0.65095575,104820.0,104810.0,0.34814324]
[1749917388717,0.65095575,104820.0,104810.0,0.53887894]
[1749917388915,0.71025642,104820.0,104810.0,0.53887894]
[1749917389714,0.71025642,104820.0,104810.0,0.53687894]
[1749917390114,0.71025642,104820.0,104810.0,0.73671989]
[1749917390327,0.71125642,104820.0,104810.0,0.73371989]
[1749917390531,0.71125642,104820.0,104810.0,0.73571989]
[1749917390927,0.89897642,104820.0,104810.0,0.73571989]
[1749917391127,0.89897642,104820.0,104810.0,0.73371989]
[1749917391328,0.89997642,104820.0,104810.0,0.73371989]
[1749917394130,1.39997642,104820.0,104810.0,0.73371989]
[1749917395324,1.39997642,104820.0,104810.0,0.53087894]
[1749917395630,1.39997642,104820.0,104810.0,0.73371989]
[1749917396527,1.39997642,104820.0,104810.0,0.34014324]
[1749917396830,1.39997642,104820.0,104810.0,0.73371989]
[1749917397726,1.48908532,104820.0,104810.0,0.73371989]
[1749917398131,1.39997642,104820.0,104810.0,0.73371989]
[1749917399434,1.39997642,104820.0,104810.0,0.53087894]
[1749917400232,1.39997642,104820.0,104810.0,0.34014324]
[1749917401037,1.40959199,104820.0,104810.0,0.34014324]
[1749917401530,2.49174184,104820.0,104810.0,0.29024324]
[1749917401731,2.85174184,104820.0,104810.0,0.29024324]
[1749917401933,2.43244117,104820.0,104810.0,0.29024324]
[1749917402640,1.30141296,104820.0,104810.0,0.48097894]
[1749917402839,2.27933296,104820.0,104810.0,0.29024324]
[1749917403234,0.1907357,104810.0,104800.0,0.23852178]
[1749917403534,0.87822496,104810.0,104800.0,0.33328773]
[1749917403732,1.29733386,104810.0,104800.0,0.33328773]
[1749917404434,1.29733386,104810.0,104800.0,0.33341874]
[1749917404635,1.00023386,104810.0,104800.0,0.33341874]
[1749917404837,1.00023386,104810.0,104800.0,0.33441874]
[1749917405034,1.50023386,104810.0,104800.0,0.33441874]
[1749917405430,0.1907535,104800.0,104790.0,0.02519014]
[1749917405639,0.6160535,104800.0,104790.0,0.39595974]
[1749917405934,0.6160535,104800.0,104790.0,0.37]
[1749917406141,0.6160535,104800.0,104790.0,0.5607717]
[1749917406643,0.6160535,104800.0,104790.0,0.5627717]
[1749917406941,0.6160535,104800.0,104790.0,0.5657717]
[1749917407148,1.1160535,104800.0,104790.0,0.5657717]
[1749917408444,1.37819367,104800.0,104790.0,0.30289]
[1749917408744,0.1907898,104780.0,104770.0,0.3785265]
[1749917408945,0.5515898,104780.0,104770.0,0.38]
[1749917409141,0.81703075,104780.0,104770.0,0.38]
[1749917409342,1.17703075,104780.0,104770.0,0.38]
[1749917409644,0.6141898,104780.0,104770.0,0.38]
[1749917410044,0.6151898,104780.0,104770.0,0.38]
[1749917410239,0.6171898,104780.0,104770.0,0.5708081]
[1749917410646,0.6171898,104780.0,104770.0,0.38]
[1749917410846,0.69464029,104780.0,104770.0,0.570808]
[1749917411045,1.19464029,104780.0,104770.0,0.570808]
[1749917411345,1.39180509,104780.0,104770.0,0.570808]
[1749917411548,1.39180509,104780.0,104770.0,0.38]
[1749917411936,1.39180509,104780.0,104770.0,0.570808]
[1749917412737,1.74180509,104780.0,104770.0,0.38]
[1749917412938,1.39180509,104780.0,104770.0,0.38]
[1749917413243,0.1908263,104760.0,104750.0,0.66105055]
[1749917413445,0.1908263,104760.0,104750.0,0.92334265]
[1749917413640,0.2531263,104760.0,104750.0,0.92334265]
[1749917413839,0.6139263,104760.0,104750.0,0.92334265]
[1749917414242,0.6139263,104760.0,104750.0,0.73558265]
[1749917414443,0.6149263,104760.0,104750.0,0.73558265]
[1749917414942,0.6149263,104760.0,104750.0,0.5008417]
[1749917415446,0.8026863,104760.0,104750.0,0.31]
[1749917415648,0.8026863,104760.0,104750.0,0.5018444]
[1749917415843,0.8026863,104760.0,104750.0,0.70468535]
[1749917416048,0.6149263,104760.0,104750.0,0.70468535]
[1749917416248,0.4418863,104760.0,104750.0,1.06548535]
[1749917416450,0.4418863,104760.0,104750.0,0.70368535]
[1749917417551,0.4418863,104760.0,104750.0,0.71703706]
[1749917417955,0.4418863,104760.0,104750.0,0.51419611]
[1749917418158,0.2541263,104760.0,104750.0,0.71703706]
[1749917419461,0.2541263,104760.0,104750.0,0.7171003]
[1749917419658,0.2541263,104760.0,104750.0,0.51425935]
[1749917419960,0.22694075,104760.0,104750.0,0.51425935]
[1749917420160,0.22694075,104760.0,104750.0,0.52915742]
[1749917420460,0.2310791,104760.0,104750.0,0.73199837]
[1749917420651,0.2310791,104760.0,104750.0,0.52915742]
[1749917420851,0.2310791,104760.0,104750.0,0.73199837]
[1749917421560,0.2310791,104760.0,104750.0,0.71709837]
[1749917421866,0.2310791,104760.0,104750.0,1.69689837]
[1749917422160,0.5918791,104760.0,104750.0,1.69653837]
[1749917422354,0.5918791,104760.0,104750.0,1.49377483]
[1749917422765,0.5918791,104760.0,104750.0,1.49378898]
[1749917423459,0.5918791,104760.0,104750.0,1.49410898]
[1749917423660,0.5918791,104760.0,104750.0,1.69694993]
[1749917423861,0.5918791,104760.0,104750.0,1.49410898]
[1749917424058,0.5918791,104760.0,104750.0,1.69697554]
[1749917426760,0.5918791,104760.0,104750.0,1.69697163]
[1749917427462,0.5918791,104760.0,104750.0,1.49413068]
[1749917427961,0.5918791,104760.0,104750.0,1.69697163]
[1749917428164,0.2310791,104760.0,104750.0,0.71721163]
[1749917428355,0.2310791,104760.0,104750.0,1.69845163]
[1749917430765,0.22806465,104760.0,104750.0,1.69845163]
[1749917430961,0.22806465,104760.0,104750.0,1.8914844]
[1749917431166,0.22806465,104760.0,104750.0,2.09432535]
[1749917433369,0.22806465,104760.0,104750.0,1.73352535]
[1749917433558,0.22806465,104760.0,104750.0,2.09432535]
[1749917434259,0.22806465,104760.0,104750.0,1.8914844]
[1749917434565,0.22806465,104760.0,104750.0,2.07712535]
[1749917434965,0.25986465,104760.0,104750.0,2.07712535]
[1749917435261,0.25986465,104760.0,104750.0,1.71632535]
[1749917435468,0.25986465,104760.0,104750.0,1.72948181]
[1749917436360,0.25986465,104760.0,104750.0,1.71632535]
[1749917437872,0.25986465,104760.0,104750.0,2.01162535]
[1749917438958,0.25986465,104760.0,104750.0,1.18726535]
[1749917439164,0.31912084,104760.0,104750.0,1.98146535]
[1749917439363,0.31912084,104760.0,104750.0,1.99463595]
[1749917439866,0.67992084,104760.0,104750.0,1.791835]
[1749917440361,0.67992084,104760.0,104750.0,1.99467595]
[1749917440667,0.31912084,104760.0,104750.0,1.99469988]
[1749917440865,0.31912084,104760.0,104750.0,2.34230535]
[1749917441065,0.31912084,104760.0,104750.0,1.7786644]
[1749917441266,0.31912084,104760.0,104750.0,1.98150535]
[1749917441664,0.31912084,104760.0,104750.0,2.34230535]
[1749917442368,0.31912084,104760.0,104750.0,2.40168471]
[1749917444267,0.31912084,104760.0,104750.0,2.43478471]
[1749917448177,0.31912084,104760.0,104750.0,2.46598471]
[1749917454582,0.31912084,104760.0,104750.0,1.90234376]
[1749917454883,0.35102084,104760.0,104750.0,2.07208471]
[1749917461087,0.35102084,104760.0,104750.0,1.86924376]
[1749917461287,0.35102084,104760.0,104750.0,1.05836471]
[1749917461487,0.80092974,104760.0,104750.0,2.03984471]
[1749917461690,0.80092974,104760.0,104750.0,1.98046535]
[1749917462888,0.80092974,104760.0,104750.0,0.80814095]
[1749917463084,0.80092974,104760.0,104750.0,1.98026545]
[1749917463692,0.80092974,104760.0,104750.0,0.79442]
[1749917463991,0.80092974,104760.0,104750.0,1.58702]
[1749917464589,0.80092974,104760.0,104750.0,1.7778645]
[1749917466492,0.80092974,104760.0,104750.0,1.7777445]
[1749917466992,0.80092974,104760.0,104750.0,1.5869]
[1749917467393,0.80092974,104760.0,104750.0,1.2916]
[1749917468792,0.80092974,104760.0,104750.0,1.4824444]
[1749917468982,0.44012974,104760.0,104750.0,1.4824444]
[1749917469189,0.71182084,104760.0,104750.0,1.74466471]
[1749917470597,0.35102084,104760.0,104750.0,1.74466471]
[1749917470990,0.35102084,104760.0,104750.0,1.77776471]
[1749917473293,0.35102084,104760.0,104750.0,2.07306471]
[1749917474890,0.35102084,104760.0,104750.0,1.09146471]
[1749917475091,0.22806465,104760.0,104750.0,2.22693078]
[1749917475294,0.22806465,104760.0,104750.0,2.21765142]
[1749917477595,0.00513835,104760.0,104750.0,3.24545237]
[1749917477796,0.19095194,104770.0,104760.0,0.1908262]
[1749917477997,0.19095194,104770.0,104760.0,1.5353587]
[1749917478199,0.19095194,104770.0,104760.0,1.47577846]
[1749917478393,0.00014324,104770.0,104760.0,1.53533366]
[1749917478599,0.19095124,104770.0,104760.0,1.53533366]
[1749917478801,0.69095124,104770.0,104760.0,1.53533366]
[1749917479798,0.69395124,104770.0,104760.0,1.53533366]
[1749917479996,0.69495124,104770.0,104760.0,1.53533366]
[1749917480302,0.19495124,104770.0,104760.0,1.33249271]
[1749917480807,0.19395124,104770.0,104760.0,1.33249271]
[1749917481098,0.22455124,104770.0,104760.0,1.33249271]
[1749917481302,0.22155124,104770.0,104760.0,1.33249271]
[1749917482191,0.22155124,104770.0,104760.0,2.31241271]
[1749917483504,0.22155124,104770.0,104760.0,2.34451271]
[1749917484006,0.22155124,104770.0,104760.0,1.36459271]
[1749917484201,0.22155124,104770.0,104760.0,2.34447271]
[1749917484405,0.03074324,104770.0,104760.0,2.54731366]
[1749917487106,0.2861663,104790.0,104760.0,2.86944036]
[1749917487306,0.3509663,104790.0,104780.0,0.75443085]
[1749917487508,0.3509663,104790.0,104780.0,2.07315085]
[1749917488214,0.8509663,104790.0,104780.0,1.09443085]
[1749917488508,0.8549663,104790.0,104780.0,2.15019948]
[1749917489006,0.8549663,104790.0,104780.0,2.07311085]
[1749917489708,0.8559663,104790.0,104780.0,2.07311085]
[1749917490312,0.68975809,104790.0,104780.0,2.07311085]
[1749917490511,0.88254379,104790.0,104780.0,2.07311085]
[1749917493116,0.38254379,104790.0,104780.0,2.07311085]
[1749917493413,0.41394379,104790.0,104780.0,2.07311085]
[1749917493613,0.0992,104790.0,104780.0,2.07311085]
[1749917493804,0.00014324,104800.0,104790.0,0.1907716]
[1749917494008,0.0307,104810.0,104800.0,0.1907534]
[1749917494204,0.2214352,104810.0,104800.0,1.1349153]
[1749917494510,0.0621,104810.0,104800.0,2.3193353]
[1749917494716,0.7528352,104810.0,104800.0,2.3193353]
[1749917495009,0.7528352,104810.0,104800.0,2.37878979]
[1749917495215,0.7528352,104810.0,104800.0,2.17594884]
[1749917495521,0.7528352,104810.0,104800.0,2.11649435]
[1749917495714,0.5621,104810.0,104800.0,2.11649435]
[1749917495914,0.5631,104810.0,104800.0,2.3193353]
[1749917496116,0.5631,104810.0,104800.0,2.11649435]
[1749917496309,0.5631,104810.0,104800.0,2.3193353]
[1749917496607,0.0324,104810.0,104800.0,2.3193353]
[1749917496813,0.001,104810.0,104800.0,2.39598979]
[1749917497006,0.002,104810.0,104800.0,2.39598979]
[1749917497513,0.001,104810.0,104800.0,2.3375353]
[1749917497717,0.12555364,104820.0,104810.0,0.1907352]
[1749917498011,0.31628104,104820.0,104810.0,1.12390124]
[1749917498214,0.34698104,104820.0,104810.0,1.12390124]
[1749917498914,0.29930074,104820.0,104810.0,1.12390124]
[1749917499214,0.30030074,104820.0,104810.0,1.12390124]
[1749917500117,0.30130074,104820.0,104810.0,1.12390124]
[1749917501813,0.30130074,104820.0,104810.0,1.5292952]
[1749917502018,0.30130074,104820.0,104810.0,1.73213615]
[1749917502919,0.30130074,104820.0,104810.0,0.75357615]
[1749917503118,0.30130074,104820.0,104810.0,1.73193615]
[1749917503417,0.66210074,104820.0,104810.0,1.73193615]
[1749917503618,0.66210074,104820.0,104810.0,0.75357615]
[1749917504121,0.66210074,104820.0,104810.0,1.1690952]
[1749917504122,0.86894169,104820.0,104810.0,1.1690952]
[1749917504319,0.86794169,104820.0,104810.0,0.7285752]
[1749917504506,0.66910074,104820.0,104810.0,1.5190952]
[1749917505121,0.66510074,104820.0,104810.0,1.5190952]
[1749917505419,0.66710074,104820.0,104810.0,1.5190952]
[1749917506219,0.66510074,104820.0,104810.0,1.5190952]
[1749917508016,0.66510074,104820.0,104810.0,1.32832]
[1749917508218,0.66510074,104820.0,104810.0,1.5190552]
[1749917509217,0.66510074,104820.0,104810.0,0.35]
[1749917509419,0.1907352,104810.0,104800.0,1.31347315]
[1749917509715,0.6440352,104810.0,104800.0,2.60179315]
[1749917510318,0.6440352,104810.0,104800.0,2.3989522]
[1749917510816,0.6450352,104810.0,104800.0,2.3989522]
[1749917511020,0.6450352,104810.0,104800.0,2.60179315]
[1749917513020,0.6450352,104810.0,104800.0,2.3989522]
[1749917513322,0.6450352,104810.0,104800.0,2.60179315]
[1749917514216,0.2842352,104810.0,104800.0,2.60179315]
[1749917514822,0.2842352,104810.0,104800.0,2.3989522]
[1749917515124,0.6450352,104810.0,104800.0,2.60179315]